Workbook

Sheet Sheet1
A1: 桑植县2025年事业单位公开招聘人员结构化面试成绩及综合成绩排名
A3: 招聘单位 | B3: 岗位职位代码 | C3: 招聘岗位名称 | D3: 准考证号 | E3: 姓名 | F3: 笔试成绩 | G3: 管理岗位：笔试成绩÷3*60% 专技岗位：笔试成绩*60% | H3: 面试成绩 | I3: 面试成 绩*40% | J3: 综合成绩 | K3: 综合排名 | L3: 备注
A4: 桑植县新闻宣传中心 | B4: 011 | C4: 记者 | D4: 202511164211 | E4: 林雨响 | F4: 71.20 | G4: =F4*0.6 -> 42.72 | H4: 77.86 | I4: =H4*0.4 -> 31.14 | J4: =G4+I4 -> 73.86 | K4: 1 | L4: 进入体检
A5: 桑植县新闻宣传中心 | B5: 011 | C5: 记者 | D5: 202511164210 | E5: 钟微 | F5: 70.05 | G5: =F5*0.6 -> 42.03 | H5: 75.24 | I5: =H5*0.4 -> 30.10 | J5: =G5+I5 -> 72.13 | K5: 2
A6: 桑植县新闻宣传中心 | B6: 012 | C6: 工作人员 | D6: 202511160119 | E6: 包雨杭 | F6: 232.20 | G6: =F6/3*0.6 -> 46.44 | H6: 76.68 | I6: 30.67 | J6: 77.11 | K6: 1 | L6: 进入体检
A7: 桑植县新闻宣传中心 | B7: 012 | C7: 工作人员 | D7: 202511160123 | E7: 汤益辉 | F7: 231.25 | G7: =F7/3*0.6 -> 46.25 | H7: 73.92 | I7: 29.57 | J7: 75.82 | K7: 2
A8: 桑植县大数据中心 | B8: 021 | C8: 工程技术人员 | D8: 202511164301 | E8: 田浩文 | F8: 77.95 | G8: =F8*0.6 -> 46.77 | H8: 76.08 | I8: 30.43 | J8: 77.20 | K8: 1 | L8: 进入体检
A9: 桑植县大数据中心 | B9: 021 | C9: 工程技术人员 | D9: 202511164321 | E9: 陈鹏 | F9: 73.20 | G9: =F9*0.6 -> 43.92 | H9: 75.36 | I9: 30.14 | J9: 74.06 | K9: 2
A10: 桑植县政府投资 项目代建服务中心 | B10: 031 | C10: 专业技术人员 | D10: 202511164427 | E10: 黄心愿 | F10: 72.45 | G10: =F10*0.6 -> 43.47 | H10: 75.32 | I10: 30.13 | J10: 73.60 | K10: 1 | L10: 进入体检
A11: 桑植县政府投资 项目代建服务中心 | B11: 031 | C11: 专业技术人员 | D11: 202511164533 | E11: 柏国豪 | F11: 72.00 | G11: =F11*0.6 -> 43.20 | H11: 73.66 | I11: 29.46 | J11: 72.66 | K11: 2
A12: 桑植县体育 产业发展中心 | B12: 041 | C12: 工作人员 | D12: 202511160216 | E12: 李帅杰 | F12: 244.50 | G12: =F12/3*0.6 -> 48.90 | H12: 77.38 | I12: 30.95 | J12: 79.85 | K12: 1 | L12: 进入体检
A13: 桑植县体育 产业发展中心 | B13: 041 | C13: 工作人员 | D13: 202511160208 | E13: 刘樨 | F13: 239.20 | G13: =F13/3*0.6 -> 47.84 | H13: 76.68 | I13: 30.67 | J13: 78.51 | K13: 2
A14: 桑植县新型工业 促进事务中心 | B14: 051 | C14: 财务人员 | D14: 202511164915 | E14: 龙艳 | F14: 78.65 | G14: =F14*0.6 -> 47.19 | H14: 72.18 | I14: 28.87 | J14: 76.06 | K14: 1 | L14: 进入体检
A15: 桑植县新型工业 促进事务中心 | B15: 051 | C15: 财务人员 | D15: 202511164908 | E15: 石祥洲 | F15: 69.75 | G15: =F15*0.6 -> 41.85 | H15: 75.22 | I15: 30.09 | J15: 71.94 | K15: 2
A16: 桑植县新型工业 促进事务中心 | B16: 052 | C16: 经济专业 技术人员 | D16: 202511165425 | E16: 燕霓 | F16: 75.25 | G16: =F16*0.6 -> 45.15 | H16: 77.80 | I16: 31.12 | J16: 76.27 | K16: 1 | L16: 进入体检
A17: 桑植县新型工业 促进事务中心 | B17: 052 | C17: 经济专业 技术人员 | D17: 202511165420 | E17: 彭惠 | F17: 73.55 | G17: =F17*0.6 -> 44.13 | H17: 73.48 | I17: 29.39 | J17: 73.52 | K17: 2
A18: 桑植县 民族宗教事务中心 | B18: 061 | C18: 工作人员 | D18: 202511160334 | E18: 万晴 | F18: 239.55 | G18: =F18/3*0.6 -> 47.91 | H18: 76.78 | I18: 30.71 | J18: 78.62 | K18: 1 | L18: 进入体检
A19: 桑植县 民族宗教事务中心 | B19: 061 | C19: 工作人员 | D19: 202511160329 | E19: 余双庆 | F19: 234.00 | G19: =F19/3*0.6 -> 46.80 | H19: 77.24 | I19: 30.90 | J19: 77.70 | K19: 2
A20: 桑植县 财政投资评审中心 | B20: 071 | C20: 财务人员 | D20: 202511165014 | E20: 梁时彬 | F20: 77.40 | G20: =F20*0.6 -> 46.44 | H20: 77.36 | I20: 30.94 | J20: 77.38 | K20: 1 | L20: 进入体检
A21: 桑植县 财政投资评审中心 | B21: 071 | C21: 财务人员 | D21: 202511165027 | E21: 贾瑀石 | F21: 74.10 | G21: =F21*0.6 -> 44.46 | H21: 76.30 | I21: 30.52 | J21: 74.98 | K21: 2 | L21: 进入体检
A22: 桑植县 财政投资评审中心 | B22: 071 | C22: 财务人员 | D22: 202511165015 | E22: 秦兰兰 | F22: 74.60 | G22: =F22*0.6 -> 44.76 | H22: 72.72 | I22: 29.09 | J22: 73.85 | K22: 3
A23: 桑植县 财政投资评审中心 | B23: 071 | C23: 财务人员 | D23: 202511165101 | E23: 杜洁 | F23: 71.60 | G23: =F23*0.6 -> 42.96 | H23: 74.34 | I23: 29.74 | J23: 72.70 | K23: 4
A24: 桑植县洪家关白族乡 自然资源所 | B24: 081 | C24: 专业技术人员1 | D24: 202511164334 | E24: 陈佳琪 | F24: 82.10 | G24: 49.26 | H24: 76.52 | I24: 30.61 | J24: 79.87 | K24: 1 | L24: 进入体检
A25: 桑植县洪家关白族乡 自然资源所 | B25: 081 | C25: 专业技术人员1 | D25: 202511164335 | E25: 韦清 | F25: 74.80 | G25: 44.88 | H25: 75.24 | I25: 30.10 | J25: 74.98 | K25: 2
A26: 桑植县沙塔坪乡 自然资源所 | B26: 082 | C26: 专业技术人员2 | D26: 202511164401 | E26: 聂薇逦 | F26: 76.10 | G26: 45.66 | H26: 74.22 | I26: 29.69 | J26: 75.35 | K26: 1 | L26: 进入体检
A27: 桑植县廖家村镇 自然资源所 | B27: 083 | C27: 专业技术人员3 | D27: 202511164901 | E27: 吴旭洋 | F27: 68.10 | G27: 40.86 | H27: 75.98 | I27: 30.39 | J27: 71.25 | K27: 1 | L27: 进入体检
A28: 桑植县廖家村镇 自然资源所 | B28: 083 | C28: 专业技术人员3 | D28: 202511164906 | E28: 朱黄腾 | F28: 66.40 | G28: 39.84 | H28: 77.58 | I28: 31.03 | J28: 70.87 | K28: 2
A29: 桑植县人潮溪镇 自然资源所 | B29: 084 | C29: 专业技术人员4 | D29: 202511165507 | E29: 邹磊 | F29: 74.75 | G29: 44.85 | H29: 77.06 | I29: 30.82 | J29: 75.67 | K29: 1 | L29: 进入体检
A30: 桑植县人潮溪镇 自然资源所 | B30: 084 | C30: 专业技术人员4 | D30: 202511165506 | E30: 王旋 | F30: 73.55 | G30: 44.13 | H30: 75.46 | I30: 30.18 | J30: 74.31 | K30: 2
A31: 桑植县利福塔镇 自然资源所 | B31: 085 | C31: 工作人员 | D31: 202511160425 | E31: 米芸颉 | F31: 232.40 | G31: =F31/3*0.6 -> 46.48 | H31: 77.56 | I31: 31.02 | J31: 77.50 | K31: 1 | L31: 进入体检
A32: 桑植县利福塔镇 自然资源所 | B32: 085 | C32: 工作人员 | D32: 202511160508 | E32: 王若男 | F32: 234.40 | G32: 46.88 | H32: 74.84 | I32: 29.94 | J32: 76.82 | K32: 2
A33: 桑植县凉水口镇 自然资源所 | B33: 086 | C33: 工作人员1 | D33: 202511160526 | E33: 张璐 | F33: 235.55 | G33: 47.11 | H33: 76.94 | I33: 30.78 | J33: 77.89 | K33: 1 | L33: 进入体检
A34: 桑植县凉水口镇 自然资源所 | B34: 086 | C34: 工作人员1 | D34: 202511160610 | E34: 侯佩东 | F34: 225.35 | G34: 45.07 | H34: 77.64 | I34: 31.06 | J34: 76.13 | K34: 2
A35: 桑植县五道水镇 自然资源所 | B35: 087 | C35: 工作人员2 | D35: 202511160713 | E35: 丁杰 | F35: 252.00 | G35: 50.40 | H35: 74.94 | I35: 29.98 | J35: 80.38 | K35: 1 | L35: 进入体检
A36: 桑植县五道水镇 自然资源所 | B36: 087 | C36: 工作人员2 | D36: 202511160627 | E36: 钟荣炜 | F36: 241.35 | G36: 48.27 | H36: 74.32 | I36: 29.73 | J36: 78.00 | K36: 2
A37: 桑植县 城乡事务服务中心 | B37: 091 | C37: 专业技术人员 | D37: 202511165608 | E37: 周雷庭 | F37: 80.95 | G37: =F37*0.6 -> 48.57 | H37: 77.12 | I37: 30.85 | J37: 79.42 | K37: 1 | L37: 进入体检
A38: 桑植县 城乡事务服务中心 | B38: 091 | C38: 专业技术人员 | D38: 202511165536 | E38: 刘晨辉 | F38: 76.20 | G38: =F38*0.6 -> 45.72 | H38: 76.16 | I38: 30.46 | J38: 76.18 | K38: 2
A39: 桑植县 城乡事务服务中心 | B39: 092 | C39: 工作人员 | D39: 202511160908 | E39: 彭梓菲 | F39: 240.05 | G39: =F39/3*0.6 -> 48.01 | H39: 76.98 | I39: 30.79 | J39: 78.80 | K39: 1 | L39: 进入体检
A40: 桑植县 城乡事务服务中心 | B40: 092 | C40: 工作人员 | D40: 202511160802 | E40: 尚盟鹃 | F40: 238.75 | G40: =F40/3*0.6 -> 47.75 | H40: 74.50 | I40: 29.80 | J40: 77.55 | K40: 2
A41: 桑植县建设工程 安全监督站 | B41: 101 | C41: 工作人员 | D41: 202511161109 | E41: 陈玲瑶 | F41: 233.15 | G41: =F41/3*0.6 -> 46.63 | H41: 78.44 | I41: 31.38 | J41: 78.01 | K41: 1 | L41: 进入体检
A42: 桑植县建设工程 安全监督站 | B42: 101 | C42: 工作人员 | D42: 202511161024 | E42: 曾芸玮 | F42: 234.35 | G42: =F42/3*0.6 -> 46.87 | H42: 72.82 | I42: 29.13 | J42: 76.00 | K42: 2
A43: 桑植县动物 疫病预防控制中心 | B43: 111 | C43: 畜牧技术员 | D43: 202511165816 | E43: 余帅 | F43: 77.40 | G43: =F43*0.6 -> 46.44 | H43: 77.48 | I43: 30.99 | J43: 77.43 | K43: 1 | L43: 进入体检
A44: 桑植县动物 疫病预防控制中心 | B44: 111 | C44: 畜牧技术员 | D44: 202511165824 | E44: 付淑芳 | F44: 78.40 | G44: =F44*0.6 -> 47.04 | H44: 74.80 | I44: 29.92 | J44: 76.96 | K44: 2
A45: 桑植县 四门岩国有林场 | B45: 121 | C45: 工作人员1 | D45: 202511161135 | E45: 赵玉姣 | F45: 238.55 | G45: =F45/3*0.6 -> 47.71 | H45: 77.48 | I45: =H45*0.4 -> 30.99 | J45: =G45+I45 -> 78.70 | K45: 1 | L45: 进入体检
A46: 桑植县 四门岩国有林场 | B46: 121 | C46: 工作人员1 | D46: 202511161113 | E46: 龚星雨 | F46: 234.05 | G46: 46.81 | H46: 75.74 | I46: 30.30 | J46: 77.11 | K46: 2
A47: 桑植县 四门岩国有林场 | B47: 122 | C47: 工作人员2 | D47: 202511161222 | E47: 谷岚 | F47: 221.50 | G47: 44.30 | H47: 79.32 | I47: 31.73 | J47: 76.03 | K47: 1 | L47: 进入体检
A48: 桑植县 四门岩国有林场 | B48: 122 | C48: 工作人员2 | D48: 202511161225 | E48: 谷娜 | F48: 215.55 | G48: 43.11 | H48: 74.98 | I48: 29.99 | J48: 73.10 | K48: 2
A49: 桑植县 四门岩国有林场 | B49: 123 | C49: 工作人员3 | D49: 202511161234 | E49: 张杰 | F49: 233.05 | G49: 46.61 | H49: 75.80 | I49: 30.32 | J49: 76.93 | K49: 1 | L49: 进入体检
A50: 桑植县 四门岩国有林场 | B50: 123 | C50: 工作人员3 | D50: 202511161302 | E50: 黄涧 | F50: 224.55 | G50: 44.91 | H50: 72.60 | I50: 29.04 | J50: 73.95 | K50: 2
A51: 桑植县 四门岩国有林场 | B51: 124 | C51: 工作人员4 | D51: 202511161332 | E51: 陈志胜 | F51: 242.65 | G51: 48.53 | H51: 74.60 | I51: 29.84 | J51: 78.37 | K51: 1 | L51: 进入体检
A52: 桑植县 四门岩国有林场 | B52: 124 | C52: 工作人员4 | D52: 202511161419 | E52: 向佐财 | F52: 236.30 | G52: 47.26 | H52: 76.42 | I52: 30.57 | J52: 77.83 | K52: 2
A53: 桑植县 四门岩国有林场 | B53: 125 | C53: 工作人员5 | D53: 202511161621 | E53: 张伟雄 | F53: 225.95 | G53: 45.19 | H53: 76.32 | I53: 30.53 | J53: 75.72 | K53: 1 | L53: 进入体检
A54: 桑植县 四门岩国有林场 | B54: 125 | C54: 工作人员5 | D54: 202511161622 | E54: 黄原硕 | F54: 207.20 | G54: 41.44 | H54: 70.12 | I54: 28.05 | J54: 69.49 | K54: 2
A55: 桑植县 双泉水库管理所 | B55: 131 | C55: 工程技术人员1 | D55: 202511166103 | E55: 陈少坤 | F55: 69.75 | G55: =F55*0.6 -> 41.85 | H55: 76.68 | I55: 30.67 | J55: 72.52 | K55: 1 | L55: 进入体检
A56: 桑植县 双泉水库管理所 | B56: 131 | C56: 工程技术人员1 | D56: 202511166104 | E56: 江俊豪 | F56: 66.60 | G56: =F56*0.6 -> 39.96 | H56: 73.52 | I56: 29.41 | J56: 69.37 | K56: 2
A57: 桑植县水资源管理站 | B57: 132 | C57: 工程技术人员2 | D57: 202511166107 | E57: 刘赛 | F57: 63.75 | G57: =F57*0.6 -> 38.25 | H57: 75.42 | I57: 30.17 | J57: 68.42 | K57: 1 | L57: 进入体检
A58: 桑植县水资源管理站 | B58: 132 | C58: 工程技术人员2 | D58: 202511166111 | E58: 于响 | F58: 61.05 | G58: =F58*0.6 -> 36.63 | H58: 71.46 | I58: 28.58 | J58: 65.21 | K58: 2
A59: 桑植县 道路运输服务中心 | B59: 141 | C59: 工作人员 | D59: 202511161626 | E59: 雷星辰 | F59: 239.00 | G59: =F59/3*0.6 -> 47.80 | H59: 77.34 | I59: 30.94 | J59: 78.74 | K59: 1 | L59: 进入体检
A60: 桑植县 道路运输服务中心 | B60: 141 | C60: 工作人员 | D60: 202511161709 | E60: 向培佩 | F60: 236.80 | G60: 47.36 | H60: 74.96 | I60: 29.98 | J60: 77.34 | K60: 2
A61: 桑植县人民群众 来访接待中心 | B61: 151 | C61: 工作人员 | D61: 202511161816 | E61: 符慧 | F61: 243.60 | G61: 48.72 | H61: 76.50 | I61: 30.60 | J61: 79.32 | K61: 1 | L61: 进入体检
A62: 桑植县人民群众 来访接待中心 | B62: 151 | C62: 工作人员 | D62: 202511161818 | E62: 张宏图 | F62: 238.75 | G62: 47.75 | H62: 76.64 | I62: 30.66 | J62: 78.41 | K62: 2
A63: 桑植县人民群众 来访接待中心 | B63: 152 | C63: 工作人员 | D63: 202511161916 | E63: 谭钰 | F63: 239.85 | G63: 47.97 | H63: 78.22 | I63: 31.29 | J63: 79.26 | K63: 1 | L63: 进入体检
A64: 桑植县人民群众 来访接待中心 | B64: 152 | C64: 工作人员 | D64: 202511161911 | E64: 田沁灵 | F64: 241.90 | G64: 48.38 | H64: 76.82 | I64: 30.73 | J64: 79.11 | K64: 2
A65: 桑植县交通建设 质量安全监督所 | B65: 161 | C65: 财务人员 | D65: 202511165207 | E65: 王思宇 | F65: 79.00 | G65: =F65*0.6 -> 47.40 | H65: 75.02 | I65: 30.01 | J65: 77.41 | K65: 1 | L65: 进入体检
A66: 桑植县交通建设 质量安全监督所 | B66: 161 | C66: 财务人员 | D66: 202511165203 | E66: 李媛媛 | F66: 76.90 | G66: =F66*0.6 -> 46.14 | H66: 78.16 | I66: 31.26 | J66: 77.40 | K66: 2
A67: 桑植县交通建设 质量安全监督所 | B67: 162 | C67: 工程技术人员 | D67: 202511166002 | E67: 向璞 | F67: 78.80 | G67: =F67*0.6 -> 47.28 | H67: 75.04 | I67: 30.02 | J67: 77.30 | K67: 1 | L67: 进入体检
A68: 桑植县交通建设 质量安全监督所 | B68: 162 | C68: 工程技术人员 | D68: 202511166008 | E68: 吴未 | F68: 77.65 | G68: =F68*0.6 -> 46.59 | H68: 73.32 | I68: 29.33 | J68: 75.92 | K68: 2
A69: 桑植县 机关事务服务中心 | B69: 171 | C69: 工作人员 | D69: 202511162017 | E69: 万至立 | F69: 220.05 | G69: =F69/3*0.6 -> 44.01 | H69: 77.60 | I69: 31.04 | J69: 75.05 | K69: 1 | L69: 进入体检
A70: 桑植县 机关事务服务中心 | B70: 171 | C70: 工作人员 | D70: 202511162018 | E70: 王秋淋 | F70: 217.20 | G70: =F70/3*0.6 -> 43.44 | H70: 76.42 | I70: 30.57 | J70: 74.01 | K70: 2
A71: 桑植县文化馆 | B71: 181 | C71: 专业技术人员 | D71: 202511166305 | E71: 钟彤 | F71: 80.75 | G71: =F71*0.6 -> 48.45 | H71: 78.78 | I71: 31.51 | J71: 79.96 | K71: 1 | L71: 进入体检
A72: 桑植县文化馆 | B72: 181 | C72: 专业技术人员 | D72: 202511166417 | E72: 袁鸣 | F72: 79.50 | G72: 47.70 | H72: 74.86 | I72: 29.94 | J72: 77.64 | K72: 2
A73: 桑植县文化馆 | B73: 182 | C73: 专业技术人员 | D73: 202511166728 | E73: 郭嘉惠 | F73: 80.10 | G73: 48.06 | H73: 75.98 | I73: 30.39 | J73: 78.45 | K73: 1 | L73: 进入体检
A74: 桑植县文化馆 | B74: 182 | C74: 专业技术人员 | D74: 202511166716 | E74: 全敏 | F74: 71.45 | G74: 42.87 | H74: 73.54 | I74: 29.42 | J74: 72.29 | K74: 2
A75: 桑植县农机事务中心 | B75: 191 | C75: 财务人员 | D75: 202511165219 | E75: 向德树 | F75: 72.45 | G75: 43.47 | H75: 78.60 | I75: 31.44 | J75: 74.91 | K75: 1 | L75: 进入体检
A76: 桑植县农机事务中心 | B76: 191 | C76: 财务人员 | D76: 202511165216 | E76: 谷艺 | F76: 74.65 | G76: 44.79 | H76: 75.26 | I76: 30.10 | J76: 74.89 | K76: 2
A77: 桑植县农机事务中心 | B77: 192 | C77: 专业技术人员 | D77: 202511168314 | E77: 陈子杰 | F77: 79.20 | G77: 47.52 | H77: 76.12 | I77: 30.45 | J77: 77.97 | K77: 1 | L77: 进入体检
A78: 桑植县农机事务中心 | B78: 192 | C78: 专业技术人员 | D78: 202511168303 | E78: 吴家臣 | F78: 75.80 | G78: 45.48 | H78: 73.82 | I78: 29.53 | J78: 75.01 | K78: 2
A79: 桑植县 公路建设养护中心 | B79: 201 | C79: 工作人员1 | D79: 202511162023 | E79: 张欣瑶 | F79: 240.60 | G79: =F79/3*0.6 -> 48.12 | H79: 76.94 | I79: 30.78 | J79: 78.90 | K79: 1 | L79: 进入体检
A80: 桑植县 公路建设养护中心 | B80: 201 | C80: 工作人员1 | D80: 202511162114 | E80: 刘晓晓 | F80: 241.35 | G80: 48.27 | H80: 74.72 | I80: 29.89 | J80: 78.16 | K80: 2
A81: 桑植县 公路建设养护中心 | B81: 202 | C81: 工作人员2 | D81: 202511162407 | E81: 邱泽浩 | F81: 232.10 | G81: 46.42 | H81: 78.24 | I81: 31.30 | J81: 77.72 | K81: 1 | L81: 进入体检
A82: 桑植县 公路建设养护中心 | B82: 202 | C82: 工作人员2 | D82: 202511162336 | E82: 邓召君 | F82: 233.90 | G82: 46.78 | H82: 77.18 | I82: 30.87 | J82: 77.65 | K82: 2 | L82: 进入体检
A83: 桑植县 公路建设养护中心 | B83: 202 | C83: 工作人员2 | D83: 202511162315 | E83: 唐泊宇 | F83: 237.50 | G83: 47.50 | H83: 74.66 | I83: 29.86 | J83: 77.36 | K83: 3
A84: 桑植县 公路建设养护中心 | B84: 202 | C84: 工作人员2 | D84: 202511162418 | E84: 杜中利 | F84: 233.00 | G84: 46.60 | H84: 75.60 | I84: 30.24 | J84: 76.84 | K84: 4
A85: 桑植县市场监督 管理信息中心 | B85: 211 | C85: 计算机人员 | D85: 202511168420 | E85: 罗雄晖 | F85: 80.15 | G85: =F85*0.6 -> 48.09 | H85: 74.12 | I85: =H85*0.4 -> 29.65 | J85: =G85+I85 -> 77.74 | K85: 1 | L85: 进入体检
A86: 桑植县市场监督 管理信息中心 | B86: 211 | C86: 计算机人员 | D86: 202511168432 | E86: 张明俊毅 | F86: 75.00 | G86: =F86*0.6 -> 45.00 | H86: 75.80 | I86: 30.32 | J86: 75.32 | K86: 2
A87: 桑植县消费者 委员会办公室 | B87: 212 | C87: 工作人员 | D87: 202511162518 | E87: 孙开杰 | F87: 245.95 | G87: =F87/3*0.6 -> 49.19 | H87: 77.46 | I87: 30.98 | J87: 80.17 | K87: 1 | L87: 进入体检
A88: 桑植县消费者 委员会办公室 | B88: 212 | C88: 工作人员 | D88: 202511162526 | E88: 王艺融 | F88: 243.50 | G88: =F88/3*0.6 -> 48.70 | H88: 76.60 | I88: 30.64 | J88: 79.34 | K88: 2
A89: 桑植县个体私营 经济发展指导中心 | B89: 213 | C89: 工作人员 | D89: 202511162532 | E89: 杨汶 | F89: 240.45 | G89: =F89/3*0.6 -> 48.09 | H89: 78.18 | I89: 31.27 | J89: 79.36 | K89: 1 | L89: 进入体检
A90: 桑植县个体私营 经济发展指导中心 | B90: 213 | C90: 工作人员 | D90: 202511162535 | E90: 罗静 | F90: 235.80 | G90: =F90/3*0.6 -> 47.16 | H90: 78.38 | I90: 31.35 | J90: 78.51 | K90: 2
A91: 桑植县卫生健康 宣传教育中心 | B91: 221 | C91: 财务人员 | D91: 202511165225 | E91: 黄依萍 | F91: 71.90 | G91: =F91*0.6 -> 43.14 | H91: 74.26 | I91: 29.70 | J91: 72.84 | K91: 1 | L91: 进入体检
A92: 桑植县卫生健康 宣传教育中心 | B92: 221 | C92: 财务人员 | D92: 202511165227 | E92: 欧妮慧 | F92: 64.25 | G92: =F92*0.6 -> 38.55 | H92: 72.74 | I92: 29.10 | J92: 67.65 | K92: 2
A93: 桑植县流动人口 计划生育管理站 | B93: 231 | C93: 工作人员1 | D93: 202511162614 | E93: 李思侬 | F93: 236.60 | G93: =F93/3*0.6 -> 47.32 | H93: 77.60 | I93: 31.04 | J93: 78.36 | K93: 1 | L93: 进入体检
A94: 桑植县流动人口 计划生育管理站 | B94: 231 | C94: 工作人员1 | D94: 202511162719 | E94: 王燃 | F94: 239.15 | G94: =F94/3*0.6 -> 47.83 | H94: 76.28 | I94: 30.51 | J94: 78.34 | K94: 2
A95: 桑植县流动人口 计划生育管理站 | B95: 232 | C95: 工作人员2 | D95: 202511162807 | E95: 罗之妍 | F95: 238.00 | G95: =F95/3*0.6 -> 47.60 | H95: 77.28 | I95: 30.91 | J95: 78.51 | K95: 1 | L95: 进入体检
A96: 桑植县流动人口 计划生育管理站 | B96: 232 | C96: 工作人员2 | D96: 202511162732 | E96: 徐利 | F96: 231.05 | G96: =F96/3*0.6 -> 46.21 | H96: 74.58 | I96: 29.83 | J96: 76.04 | K96: 2
A97: 桑植县 疾病预防控制中心 | B97: 241 | C97: 卫生监督执法 | D97: 202511167204 | E97: 宋云鹏 | F97: 79.60 | G97: =F97*0.6 -> 47.76 | H97: 76.72 | I97: 30.69 | J97: 78.45 | K97: 1 | L97: 进入体检
A98: 桑植县 疾病预防控制中心 | B98: 241 | C98: 卫生监督执法 | D98: 202511167202 | E98: 刘海涛 | F98: 77.55 | G98: 46.53 | H98: 74.04 | I98: 29.62 | J98: 76.15 | K98: 2 | L98: 进入体检
A99: 桑植县 疾病预防控制中心 | B99: 241 | C99: 卫生监督执法 | D99: 202511167205 | E99: 史洪宇 | F99: 76.90 | G99: 46.14 | H99: 73.82 | I99: 29.53 | J99: 75.67 | K99: 3
A100: 桑植县 疾病预防控制中心 | B100: 241 | C100: 卫生监督执法 | D100: 202511167201 | E100: 杨子贤 | F100: 83.55 | G100: 50.13 | H100: 0.00 | I100: 0.00 | J100: 50.13 | K100: 4
A101: 桑植县 疾病预防控制中心 | B101: 242 | C101: 卫生监督执法 | D101: 202511165831 | E101: 张茜茜 | F101: 76.55 | G101: 45.93 | H101: 74.30 | I101: =H101*0.4 -> 29.72 | J101: =G101+I101 -> 75.65 | K101: 1 | L101: 进入体检
A102: 桑植县 疾病预防控制中心 | B102: 242 | C102: 卫生监督执法 | D102: 202511165833 | E102: 李雨洁 | F102: 76.20 | G102: 45.72 | H102: 73.50 | I102: 29.40 | J102: 75.12 | K102: 2 | L102: 进入体检
A103: 桑植县 疾病预防控制中心 | B103: 242 | C103: 卫生监督执法 | D103: 202511165835 | E103: 龙丽熹 | F103: 75.10 | G103: 45.06 | H103: 73.20 | I103: 29.28 | J103: 74.34 | K103: 3
A104: 桑植县 疾病预防控制中心 | B104: 242 | C104: 卫生监督执法 | D104: 202511165836 | E104: 向锐娟 | F104: 75.00 | G104: 45.00 | H104: 0.00 | I104: 0.00 | J104: 45.00 | K104: 4
A105: 桑植县人民医院 | B105: 257 | C105: 财务人员 | D105: 202511165308 | E105: 张丁科 | F105: 74.85 | G105: =F105*0.6 -> 44.91 | H105: 72.54 | I105: 29.02 | J105: 73.93 | K105: 1 | L105: 进入体检
A106: 桑植县人民医院 | B106: 257 | C106: 财务人员 | D106: 202511165302 | E106: 田雅丽 | F106: 71.00 | G106: 42.60 | H106: 76.04 | I106: 30.42 | J106: 73.02 | K106: 2 | L106: 进入体检
A107: 桑植县人民医院 | B107: 257 | C107: 财务人员 | D107: 202511165303 | E107: 李柯莹 | F107: 66.75 | G107: 40.05 | H107: 73.22 | I107: 29.29 | J107: 69.34 | K107: 3
A108: 桑植县人民医院 | B108: 257 | C108: 财务人员 | D108: 202511165305 | E108: 彭颖 | F108: 64.00 | G108: 38.40 | H108: 75.24 | I108: 30.10 | J108: 68.50 | K108: 4
A109: 桑植县人民医院 | B109: 258 | C109: 人力资源 专业人员 | D109: 202511168319 | E109: 田紫燕 | F109: 74.25 | G109: 44.55 | H109: 76.14 | I109: 30.46 | J109: 75.01 | K109: 1 | L109: 进入体检
A110: 桑植县人民医院 | B110: 258 | C110: 人力资源 专业人员 | D110: 202511168335 | E110: 王彩霞 | F110: 72.65 | G110: 43.59 | H110: 76.24 | I110: 30.50 | J110: 74.09 | K110: 2
A111: 桑植县民族中医院 | B111: 264 | C111: 财务人员 | D111: 202511165329 | E111: 王婧 | F111: 69.75 | G111: 41.85 | H111: 76.20 | I111: 30.48 | J111: 72.33 | K111: 1 | L111: 进入体检
A112: 桑植县民族中医院 | B112: 264 | C112: 财务人员 | D112: 202511165321 | E112: 谭燕 | F112: 66.30 | G112: 39.78 | H112: 73.62 | I112: 29.45 | J112: 69.23 | K112: 2
A113: 桑植县乡镇事业单位 | B113: 281 | C113: 工作人员1 | D113: 202511162916 | E113: 刘婧 | F113: 233.05 | G113: =F113/3*0.6 -> 46.61 | H113: 78.42 | I113: 31.37 | J113: 77.98 | K113: 1 | L113: 进入体检
A114: 桑植县乡镇事业单位 | B114: 281 | C114: 工作人员1 | D114: 202511163014 | E114: 高山 | F114: 226.85 | G114: 45.37 | H114: 77.64 | I114: 31.06 | J114: 76.43 | K114: 2
A115: 桑植县乡镇事业单位 | B115: 282 | C115: 工作人员2 | D115: 202511163110 | E115: 张潇 | F115: 228.30 | G115: 45.66 | H115: 78.00 | I115: 31.20 | J115: 76.86 | K115: 1 | L115: 进入体检
A116: 桑植县乡镇事业单位 | B116: 282 | C116: 工作人员2 | D116: 202511163102 | E116: 罗琳茜 | F116: 223.20 | G116: 44.64 | H116: 78.44 | I116: 31.38 | J116: 76.02 | K116: 2 | L116: 进入体检
A117: 桑植县乡镇事业单位 | B117: 282 | C117: 工作人员2 | D117: 202511163105 | E117: 朱振赣 | F117: 229.05 | G117: 45.81 | H117: 75.50 | I117: 30.20 | J117: 76.01 | K117: 3
A118: 桑植县乡镇事业单位 | B118: 282 | C118: 工作人员2 | D118: 202511163117 | E118: 熊巍 | F118: 223.40 | G118: 44.68 | H118: 75.34 | I118: 30.14 | J118: 74.82 | K118: 4
A119: 桑植县乡镇事业单位 | B119: 283 | C119: 工作人员3 | D119: 202511163507 | E119: 邹一萌 | F119: 239.05 | G119: 47.81 | H119: 78.54 | I119: 31.42 | J119: 79.23 | K119: 1 | L119: 进入体检
A120: 桑植县乡镇事业单位 | B120: 283 | C120: 工作人员3 | D120: 202511163635 | E120: 陈茜 | F120: 236.55 | G120: 47.31 | H120: 77.80 | I120: 31.12 | J120: 78.43 | K120: 2 | L120: 进入体检
A121: 桑植县乡镇事业单位 | B121: 283 | C121: 工作人员3 | D121: 202511163601 | E121: 王婵 | F121: 236.50 | G121: 47.30 | H121: 75.28 | I121: 30.11 | J121: 77.41 | K121: 3
A122: 桑植县乡镇事业单位 | B122: 283 | C122: 工作人员3 | D122: 202511163434 | E122: 张渝婧 | F122: 236.90 | G122: 47.38 | H122: 74.86 | I122: 29.94 | J122: 77.32 | K122: 4
A123: 注：黄色为管理岗位，蓝色为专技岗位
